[Event "Early-Titled-Tuesday-Blitz-September-05-2023"]
[Site "Chess.com"]
[Date "2023.09.05"]
[Round "7"]
[White "Tugrik1969"]
[Black "suyu28"]
[Result "1-0"]
[WhiteElo "2510"]
[BlackElo "2714"]
[TimeControl "180+1"]
[EndTime "9:18:01 PDT"]
[Termination "Tugrik1969 won by checkmate"]

1. e4 {[%clk 0:03:00.9]} 1... c6 {[%clk 0:03:00.2]} 2. d4 {[%clk 0:03:00.9]}
2... d5 {[%clk 0:03:00.5]} 3. exd5 {[%clk 0:03:01.8]} 3... cxd5 {[%clk
0:03:00.6]} 4. Bd3 {[%clk 0:03:02.4]} 4... Nc6 {[%clk 0:03:00.3]} 5. c3 {[%clk
0:03:03]} 5... Qc7 {[%clk 0:02:56.2]} 6. h3 {[%clk 0:03:03]} 6... e6 {[%clk
0:02:56.7]} 7. Nf3 {[%clk 0:03:02.9]} 7... Bd6 {[%clk 0:02:57.3]} 8. O-O {[%clk
0:03:03.3]} 8... Nge7 {[%clk 0:02:58]} 9. Re1 {[%clk 0:02:59.9]} 9... O-O {[%clk
0:02:58.1]} 10. a4 {[%clk 0:03:00.8]} 10... f6 {[%clk 0:02:50.9]} 11. Na3 {[%clk
0:03:00.9]} 11... a6 {[%clk 0:02:50.8]} 12. c4 {[%clk 0:03:01.4]} 12... dxc4
{[%clk 0:02:37.1]} 13. Nxc4 {[%clk 0:03:00.4]} 13... Bb4 {[%clk 0:02:37.6]} 14.
Bd2 {[%clk 0:02:58.9]} 14... Bxd2 {[%clk 0:02:34.3]} 15. Qxd2 {[%clk 0:02:59.8]}
15... Rd8 {[%clk 0:02:34.2]} 16. a5 {[%clk 0:02:48.3]} 16... Nf5 {[%clk
0:02:15.8]} 17. Bxf5 {[%clk 0:02:42]} 17... exf5 {[%clk 0:02:16.7]} 18. Nb6
{[%clk 0:02:42.4]} 18... Rb8 {[%clk 0:02:16.9]} 19. d5 {[%clk 0:02:40.4]} 19...
Na7 {[%clk 0:02:13.4]} 20. Qb4 {[%clk 0:02:33.9]} 20... Nb5 {[%clk 0:02:07.3]}
21. Rac1 {[%clk 0:02:19]} 21... Qd6 {[%clk 0:02:06.8]} 22. Qxd6 {[%clk
0:02:07.1]} 22... Nxd6 {[%clk 0:02:06.5]} 23. Rc7 {[%clk 0:02:07.7]} 23... Ne8
{[%clk 0:01:58.2]} 24. Rce7 {[%clk 0:02:00.6]} 24... Kf8 {[%clk 0:01:58.1]} 25.
Nd4 {[%clk 0:01:42]} 25... Nd6 {[%clk 0:01:57.6]} 26. Rc7 {[%clk 0:01:33.4]}
26... Ne8 {[%clk 0:01:54.1]} 27. Rc5 {[%clk 0:00:49.1]} 27... Bd7 {[%clk
0:01:46.2]} 28. Ne6+ {[%clk 0:00:36]} 28... Bxe6 {[%clk 0:01:44.7]} 29. dxe6
{[%clk 0:00:36.9]} 29... Ke7 {[%clk 0:01:39.7]} 30. b4 {[%clk 0:00:34.3]} 30...
Rd4 {[%clk 0:01:28.6]} 31. Rxf5 {[%clk 0:00:31]} 31... Nc7 {[%clk 0:01:22.5]}
32. Rc5 {[%clk 0:00:20.4]} 32... Nb5 {[%clk 0:01:08.4]} 33. Nd5+ {[%clk
0:00:17.3]} 33... Kd6 {[%clk 0:01:08.6]} 34. Ne3 {[%clk 0:00:08.2]} 34... Rxb4
{[%clk 0:01:03.4]} 35. Rh5 {[%clk 0:00:08.3]} 35... Nd4 {[%clk 0:00:53.3]} 36.
Rxh7 {[%clk 0:00:05.2]} 36... Re8 {[%clk 0:00:49.1]} 37. Rxg7 {[%clk 0:00:02.8]}
37... Rxe6 {[%clk 0:00:49.2]} 38. Rd1 {[%clk 0:00:03.1]} 38... Kc6 {[%clk
0:00:45.4]} 39. Rc1+ {[%clk 0:00:02.6]} 39... Kd6 {[%clk 0:00:41.7]} 40. Rd1
{[%clk 0:00:02.6]} 40... Ke5 {[%clk 0:00:28.5]} 41. Kf1 {[%clk 0:00:02]} 41...
f5 {[%clk 0:00:26]} 42. Rf7 {[%clk 0:00:01.8]} 42... Rc6 {[%clk 0:00:20.3]} 43.
f4+ {[%clk 0:00:02.1]} 43... Ke6 {[%clk 0:00:18]} 44. Rh7 {[%clk 0:00:01.8]}
44... Rc3 {[%clk 0:00:16.9]} 45. Rh6+ {[%clk 0:00:02.7]} 45... Kf7 {[%clk
0:00:15]} 46. Nd5 {[%clk 0:00:03.6]} 46... Nc6 {[%clk 0:00:09.8]} 47. Nxc3
{[%clk 0:00:03.6]} 47... Rxf4+ {[%clk 0:00:09.4]} 48. Kg1 {[%clk 0:00:03.6]}
48... Rc4 {[%clk 0:00:09.5]} 49. Rxc6 {[%clk 0:00:03.7]} 49... Rxc6 {[%clk
0:00:09.4]} 50. Nd5 {[%clk 0:00:04.1]} 50... Rc5 {[%clk 0:00:09.7]} 51. Ne3
{[%clk 0:00:03.3]} 51... Rxa5 {[%clk 0:00:09.3]} 52. Rd7+ {[%clk 0:00:03.5]}
52... Ke6 {[%clk 0:00:09.1]} 53. Rxb7 {[%clk 0:00:04.4]} 53... Ra2 {[%clk
0:00:07.8]} 54. h4 {[%clk 0:00:04.4]} 54... Re2 {[%clk 0:00:07.6]} 55. Nc4
{[%clk 0:00:03.5]} 55... Re4 {[%clk 0:00:07.5]} 56. Na5 {[%clk 0:00:02.4]} 56...
f4 {[%clk 0:00:07.3]} 57. Rb6+ {[%clk 0:00:02.5]} 57... Kf5 {[%clk 0:00:07.5]}
58. h5 {[%clk 0:00:02.9]} 58... Ra4 {[%clk 0:00:06.8]} 59. Rxa6 {[%clk 0:00:03]}
59... Kg4 {[%clk 0:00:06.4]} 60. h6 {[%clk 0:00:02.7]} 60... Kg3 {[%clk
0:00:06.8]} 61. Rg6+ {[%clk 0:00:02.8]} 61... Kh4 {[%clk 0:00:07.3]} 62. h7
{[%clk 0:00:03.2]} 62... f3 {[%clk 0:00:06.8]} 63. h8=Q# {[%clk 0:00:03.3]} 1-0

[Event "Early-Titled-Tuesday-Blitz-September-05-2023"]
[Site "Chess.com"]
[Date "2023.09.05"]
[Round "7"]
[White "Brave_spirit12"]
[Black "Dixit_Nikhil"]
[Result "0-1"]
[WhiteElo "2776"]
[BlackElo "2513"]
[TimeControl "180+1"]
[EndTime "9:18:13 PDT"]
[Termination "Dixit_Nikhil won by resignation"]

1. e4 {[%clk 0:03:00.9]} 1... a6 {[%clk 0:02:55.6]} 2. d4 {[%clk 0:03:00.8]}
2... b6 {[%clk 0:02:52.9]} 3. Nf3 {[%clk 0:03:00.8]} 3... Bb7 {[%clk 0:02:51.8]}
4. Bd3 {[%clk 0:03:01.4]} 4... g6 {[%clk 0:02:52.1]} 5. O-O {[%clk 0:03:00.7]}
5... Bg7 {[%clk 0:02:52.5]} 6. c4 {[%clk 0:02:58.6]} 6... e6 {[%clk 0:02:48.1]}
7. Nc3 {[%clk 0:02:58.1]} 7... Ne7 {[%clk 0:02:46.9]} 8. Bf4 {[%clk 0:02:57.1]}
8... O-O {[%clk 0:02:46.4]} 9. Qd2 {[%clk 0:02:57.6]} 9... d6 {[%clk 0:02:45.1]}
10. Bh6 {[%clk 0:02:57.6]} 10... Nbc6 {[%clk 0:02:44.9]} 11. Bxg7 {[%clk
0:02:57.4]} 11... Kxg7 {[%clk 0:02:44.6]} 12. Rae1 {[%clk 0:02:57.5]} 12... e5
{[%clk 0:02:42.9]} 13. d5 {[%clk 0:02:57.6]} 13... Nb8 {[%clk 0:02:40.7]} 14.
Ne2 {[%clk 0:02:57.7]} 14... Bc8 {[%clk 0:02:35]} 15. Ng3 {[%clk 0:02:57.8]}
15... Nd7 {[%clk 0:02:32.8]} 16. Nh4 {[%clk 0:02:55.6]} 16... Ng8 {[%clk
0:02:08.6]} 17. Nf3 {[%clk 0:02:44.7]} 17... Qf6 {[%clk 0:02:03.7]} 18. Bc2
{[%clk 0:02:36.2]} 18... h6 {[%clk 0:02:00.7]} 19. h3 {[%clk 0:02:36.4]} 19...
a5 {[%clk 0:01:54.4]} 20. Nh2 {[%clk 0:02:36.5]} 20... Qf4 {[%clk 0:01:47.4]}
21. Qc3 {[%clk 0:02:27.6]} 21... h5 {[%clk 0:01:42.5]} 22. Re3 {[%clk
0:02:25.3]} 22... h4 {[%clk 0:01:38.4]} 23. Rf3 {[%clk 0:02:22.7]} 23... Qg5
{[%clk 0:01:38.9]} 24. Ne2 {[%clk 0:02:16.9]} 24... Ngf6 {[%clk 0:01:37.5]} 25.
Re3 {[%clk 0:02:15.1]} 25... Nh5 {[%clk 0:01:29.2]} 26. f4 {[%clk 0:02:14.1]}
26... Qe7 {[%clk 0:01:26.4]} 27. Ng4 {[%clk 0:02:09.3]} 27... f6 {[%clk
0:01:24.7]} 28. f5 {[%clk 0:02:03.5]} 28... g5 {[%clk 0:01:23.8]} 29. g3 {[%clk
0:02:02.8]} 29... Nxg3 {[%clk 0:01:21.7]} 30. Nxg3 {[%clk 0:02:03.7]} 30... hxg3
{[%clk 0:01:22.6]} 31. Rxg3 {[%clk 0:02:04.3]} 31... Rh8 {[%clk 0:01:23]} 32.
Kf2 {[%clk 0:02:03]} 32... Nc5 {[%clk 0:01:19.8]} 33. Qe3 {[%clk 0:01:58.4]}
33... Bd7 {[%clk 0:01:10.2]} 34. Rfg1 {[%clk 0:01:52]} 34... Rag8 {[%clk
0:01:09.6]} 35. b3 {[%clk 0:01:45.8]} 35... Kf8 {[%clk 0:01:09]} 36. a3 {[%clk
0:01:45.8]} 36... Be8 {[%clk 0:01:05.8]} 37. b4 {[%clk 0:01:45.2]} 37... Nb7
{[%clk 0:01:06.1]} 38. Bd3 {[%clk 0:01:36.8]} 38... Bh5 {[%clk 0:01:04.9]} 39.
Nh2 {[%clk 0:01:33.6]} 39... Be8 {[%clk 0:01:02.4]} 40. Nf3 {[%clk 0:01:31.9]}
40... Bh5 {[%clk 0:01:00.1]} 41. Nh2 {[%clk 0:01:23.4]} 41... Be8 {[%clk
0:00:59.8]} 42. Be2 {[%clk 0:01:19.1]} 42... Rh4 {[%clk 0:00:57.4]} 43. Nf3
{[%clk 0:01:16.9]} 43... Rf4 {[%clk 0:00:57.3]} 44. Ke1 {[%clk 0:01:15.3]} 44...
Bh5 {[%clk 0:00:52.9]} 45. Kd2 {[%clk 0:01:12]} 45... Bxf3 {[%clk 0:00:52.5]}
46. Bxf3 {[%clk 0:01:12.9]} 46... Rh4 {[%clk 0:00:49.6]} 47. Bg4 {[%clk
0:01:12.5]} 47... Kg7 {[%clk 0:00:47.7]} 48. Kc2 {[%clk 0:01:07.3]} 48... Ra8
{[%clk 0:00:45.9]} 49. Be2 {[%clk 0:01:06.2]} 49... Nd8 {[%clk 0:00:45.2]} 50.
Kb3 {[%clk 0:01:04.2]} 50... Nf7 {[%clk 0:00:45]} 51. Rg4 {[%clk 0:00:58.6]}
51... Rxg4 {[%clk 0:00:42.3]} 52. Rxg4 {[%clk 0:00:59.5]} 52... axb4 {[%clk
0:00:42.6]} 53. axb4 {[%clk 0:00:58.8]} 53... Qd7 {[%clk 0:00:40.8]} 54. b5
{[%clk 0:00:59]} 54... c5 {[%clk 0:00:33.1]} 55. dxc6 {[%clk 0:00:19.2]} 55...
Qa7 {[%clk 0:00:31.6]} 56. Kc2 {[%clk 0:00:19.5]} 56... Qa1 {[%clk 0:00:27.7]}
57. Qc1 {[%clk 0:00:16.9]} 57... Ra2+ {[%clk 0:00:26.8]} 58. Kd1 {[%clk
0:00:17.1]} 58... Qd4+ {[%clk 0:00:23.3]} 59. Ke1 {[%clk 0:00:17.1]} 59... Ra1
{[%clk 0:00:23.8]} 60. Qxa1 {[%clk 0:00:16.3]} 60... Qxa1+ {[%clk 0:00:24.7]}
61. Kf2 {[%clk 0:00:16.9]} 61... Qd4+ {[%clk 0:00:24.7]} 62. Kf3 {[%clk
0:00:15.2]} 62... d5 {[%clk 0:00:16]} 63. exd5 {[%clk 0:00:13.6]} 63... e4+
{[%clk 0:00:16.4]} 64. Kg2 {[%clk 0:00:09.3]} 64... Ne5 {[%clk 0:00:16.8]} 65.
Rg3 {[%clk 0:00:08]} 65... Qd2 {[%clk 0:00:17]} 66. Kf1 {[%clk 0:00:06.5]} 66...
Nd3 {[%clk 0:00:16.4]} 67. Bxd3 {[%clk 0:00:06.2]} 67... exd3 {[%clk 0:00:16.7]}
68. c7 {[%clk 0:00:06.6]} 68... Qe2+ {[%clk 0:00:16.8]} 69. Kg1 {[%clk
0:00:06.8]} 69... d2 {[%clk 0:00:17.4]} 0-1

[Event "Early-Titled-Tuesday-Blitz-September-05-2023"]
[Site "Chess.com"]
[Date "2023.09.05"]
[Round "7"]
[White "Angry_Twin"]
[Black "Druid24"]
[Result "0-1"]
[WhiteElo "2918"]
[BlackElo "2673"]
[TimeControl "180+1"]
[EndTime "9:18:14 PDT"]
[Termination "Druid24 won by resignation"]

1. e4 {[%clk 0:03:00.9]} 1... e5 {[%clk 0:02:59.1]} 2. Nf3 {[%clk 0:02:59.9]}
2... Qe7 {[%clk 0:02:59.2]} 3. Nc3 {[%clk 0:02:58.9]} 3... c6 {[%clk 0:02:59.6]}
4. d4 {[%clk 0:02:59.1]} 4... d6 {[%clk 0:03:00.1]} 5. a4 {[%clk 0:02:57.8]}
5... Nf6 {[%clk 0:02:58.8]} 6. Bc4 {[%clk 0:02:57.2]} 6... h6 {[%clk 0:02:56.9]}
7. h3 {[%clk 0:02:56.5]} 7... g5 {[%clk 0:02:56.3]} 8. Be3 {[%clk 0:02:47.6]}
8... Bg7 {[%clk 0:02:55.6]} 9. dxe5 {[%clk 0:02:30.3]} 9... dxe5 {[%clk
0:02:54.5]} 10. Qd3 {[%clk 0:02:28.9]} 10... Nbd7 {[%clk 0:02:52.1]} 11. Rd1
{[%clk 0:02:22.2]} 11... O-O {[%clk 0:02:50.7]} 12. Qd6 {[%clk 0:02:19.6]} 12...
Qxd6 {[%clk 0:02:39.2]} 13. Rxd6 {[%clk 0:02:20.5]} 13... Re8 {[%clk 0:02:38.9]}
14. Ke2 {[%clk 0:02:10.2]} 14... Bf8 {[%clk 0:02:38]} 15. Rdd1 {[%clk
0:02:09.9]} 15... Nc5 {[%clk 0:02:37.3]} 16. Nd2 {[%clk 0:02:09.4]} 16... Ne6
{[%clk 0:02:36]} 17. Nb3 {[%clk 0:02:07.6]} 17... Nf4+ {[%clk 0:02:34.1]} 18.
Kf1 {[%clk 0:02:06.9]} 18... Be6 {[%clk 0:02:32.8]} 19. Bxe6 {[%clk 0:02:06.6]}
19... Nxe6 {[%clk 0:02:33.4]} 20. g3 {[%clk 0:02:04.3]} 20... b6 {[%clk
0:02:32.4]} 21. Ke2 {[%clk 0:02:02.9]} 21... Bb4 {[%clk 0:02:31.7]} 22. Kf3
{[%clk 0:01:54.4]} 22... Kf8 {[%clk 0:02:25.1]} 23. Ne2 {[%clk 0:01:54.3]} 23...
Ke7 {[%clk 0:02:22.6]} 24. c3 {[%clk 0:01:53.8]} 24... Bd6 {[%clk 0:02:21]} 25.
Nd2 {[%clk 0:01:52.7]} 25... Bc7 {[%clk 0:02:19.5]} 26. Nc4 {[%clk 0:01:50.7]}
26... Red8 {[%clk 0:02:18.6]} 27. Nc1 {[%clk 0:01:50.2]} 27... h5 {[%clk
0:01:59]} 28. g4 {[%clk 0:01:39.1]} 28... hxg4+ {[%clk 0:01:56.7]} 29. hxg4
{[%clk 0:01:40]} 29... Rxd1 {[%clk 0:01:55.6]} 30. Rxd1 {[%clk 0:01:40.1]} 30...
Rh8 {[%clk 0:01:56.2]} 31. Nd3 {[%clk 0:01:37.8]} 31... Nd7 {[%clk 0:01:50.1]}
32. b4 {[%clk 0:01:35.9]} 32... f6 {[%clk 0:01:49.7]} 33. Kg2 {[%clk 0:01:32.4]}
33... Nf4+ {[%clk 0:01:45]} 34. Bxf4 {[%clk 0:01:32.7]} 34... gxf4 {[%clk
0:01:45.8]} 35. f3 {[%clk 0:01:31.8]} 35... Nf8 {[%clk 0:01:44.2]} 36. Rh1
{[%clk 0:01:29.2]} 36... Rxh1 {[%clk 0:01:42.2]} 37. Kxh1 {[%clk 0:01:30.1]}
37... Ne6 {[%clk 0:01:41.6]} 38. Kg2 {[%clk 0:01:30.2]} 38... Ng5 {[%clk
0:01:41.5]} 39. Kf2 {[%clk 0:01:30.5]} 39... b5 {[%clk 0:01:36]} 40. axb5 {[%clk
0:01:29.2]} 40... cxb5 {[%clk 0:01:36.7]} 41. Na3 {[%clk 0:01:29.5]} 41... Bb6+
{[%clk 0:01:36.6]} 42. Ke2 {[%clk 0:01:30]} 42... a6 {[%clk 0:01:36.2]} 43. c4
{[%clk 0:01:27.2]} 43... bxc4 {[%clk 0:01:36]} 44. Nxc4 {[%clk 0:01:28.1]} 44...
Bd4 {[%clk 0:01:35.8]} 45. Na5 {[%clk 0:01:20.3]} 45... Kd6 {[%clk 0:01:32.1]}
46. Nb3 {[%clk 0:01:20.2]} 46... Bb6 {[%clk 0:01:31.2]} 47. Nbc5 {[%clk
0:01:00.6]} 47... Nh3 {[%clk 0:01:12.7]} 48. Kf1 {[%clk 0:00:48.6]} 48... Ng5
{[%clk 0:01:04.6]} 49. Ke2 {[%clk 0:00:38.8]} 49... Ne6 {[%clk 0:01:04.4]} 50.
Nxa6 {[%clk 0:00:34.9]} 50... Kc6 {[%clk 0:00:58.7]} 51. Nac5 {[%clk 0:00:29]}
51... Nxc5 {[%clk 0:00:48.8]} 52. bxc5 {[%clk 0:00:29.1]} 52... Bxc5 {[%clk
0:00:49.1]} 53. Kd2 {[%clk 0:00:28.5]} 53... Bd6 {[%clk 0:00:47.5]} 54. Kc3
{[%clk 0:00:27.1]} 54... Kb5 {[%clk 0:00:47.1]} 55. Kb3 {[%clk 0:00:27.4]} 55...
Bc7 {[%clk 0:00:45.4]} 56. Nc1 {[%clk 0:00:24.4]} 56... Kc5 {[%clk 0:00:45.2]}
57. Kc3 {[%clk 0:00:24.7]} 57... Ba5+ {[%clk 0:00:45.3]} 58. Kd3 {[%clk
0:00:25.1]} 58... Kb4 {[%clk 0:00:45.7]} 59. Ne2 {[%clk 0:00:21.9]} 59... Kb3
{[%clk 0:00:43.6]} 60. Ng1 {[%clk 0:00:17.4]} 60... Be1 {[%clk 0:00:40.1]} 61.
Ke2 {[%clk 0:00:13.7]} 61... Bh4 {[%clk 0:00:37]} 62. Kd3 {[%clk 0:00:13.9]}
62... Bf2 {[%clk 0:00:35.3]} 63. Nh3 {[%clk 0:00:12.9]} 63... Bh4 {[%clk
0:00:35.5]} 64. Kd2 {[%clk 0:00:12.3]} 64... Kc4 {[%clk 0:00:34.8]} 65. Ng1
{[%clk 0:00:11.9]} 65... Bf2 {[%clk 0:00:33.1]} 66. Ne2 {[%clk 0:00:12.3]} 66...
Be3+ {[%clk 0:00:29.2]} 67. Kc2 {[%clk 0:00:12.7]} 67... Bd4 {[%clk 0:00:26.1]}
68. Nc1 {[%clk 0:00:12.3]} 68... Bc3 {[%clk 0:00:22]} 69. Ne2 {[%clk 0:00:09.6]}
69... Bb4 {[%clk 0:00:22.2]} 70. Ng1 {[%clk 0:00:05.5]} 70... Kd4 {[%clk
0:00:22.9]} 71. Nh3 {[%clk 0:00:04.6]} 71... Ke3 {[%clk 0:00:19.9]} 72. g5
{[%clk 0:00:05.1]} 72... Be7 {[%clk 0:00:16.7]} 73. g6 {[%clk 0:00:04.4]} 73...
Bf8 {[%clk 0:00:16.7]} 74. Ng1 {[%clk 0:00:03.4]} 74... Kf2 {[%clk 0:00:16.5]}
75. Nh3+ {[%clk 0:00:02.6]} 75... Kg2 {[%clk 0:00:16.6]} 76. Kd3 {[%clk
0:00:03.5]} 76... Kxh3 {[%clk 0:00:16.3]} 77. Kc4 {[%clk 0:00:02.9]} 77... Kg3
{[%clk 0:00:16.9]} 78. Kd5 {[%clk 0:00:03.8]} 78... Kxf3 {[%clk 0:00:16.1]} 79.
Ke6 {[%clk 0:00:04.7]} 79... Kxe4 {[%clk 0:00:16.1]} 80. Kf7 {[%clk 0:00:05]}
80... Bh6 {[%clk 0:00:16.3]} 0-1

[Event "Early-Titled-Tuesday-Blitz-September-05-2023"]
[Site "Chess.com"]
[Date "2023.09.05"]
[Round "7"]
[White "kasun_bole"]
[Black "slidingknight2775"]
[Result "0-1"]
[WhiteElo "2401"]
[BlackElo "2575"]
[TimeControl "180+1"]
[EndTime "9:18:17 PDT"]
[Termination "slidingknight2775 won by resignation"]

1. d4 {[%clk 0:03:00.9]} 1... Nf6 {[%clk 0:02:59.9]} 2. c4 {[%clk 0:03:00.7]}
2... e6 {[%clk 0:03:00.4]} 3. Nf3 {[%clk 0:03:00.6]} 3... d5 {[%clk 0:03:00.1]}
4. Nc3 {[%clk 0:03:00.6]} 4... a6 {[%clk 0:02:59.9]} 5. cxd5 {[%clk 0:02:56.8]}
5... exd5 {[%clk 0:03:00.8]} 6. Bg5 {[%clk 0:02:56.6]} 6... Be6 {[%clk
0:03:01.1]} 7. e3 {[%clk 0:02:55.3]} 7... Nbd7 {[%clk 0:03:01.2]} 8. Bd3 {[%clk
0:02:54.7]} 8... Bd6 {[%clk 0:03:01.4]} 9. a3 {[%clk 0:02:53.5]} 9... c6 {[%clk
0:02:58]} 10. Qc2 {[%clk 0:02:51.4]} 10... h6 {[%clk 0:02:57.2]} 11. Bh4 {[%clk
0:02:50.6]} 11... a5 {[%clk 0:02:50.1]} 12. Bg3 {[%clk 0:02:45.4]} 12... Qb8
{[%clk 0:02:48.5]} 13. Bf5 {[%clk 0:02:45.1]} 13... Bxg3 {[%clk 0:02:43.3]} 14.
hxg3 {[%clk 0:02:33.4]} 14... Qd6 {[%clk 0:02:42.4]} 15. Na4 {[%clk 0:02:24.9]}
15... g6 {[%clk 0:02:17.6]} 16. Bd3 {[%clk 0:02:15.9]} 16... Kf8 {[%clk
0:02:10.2]} 17. Rc1 {[%clk 0:02:15.2]} 17... Kg7 {[%clk 0:02:08.3]} 18. Nc5
{[%clk 0:02:12]} 18... Nxc5 {[%clk 0:02:07.8]} 19. Qxc5 {[%clk 0:02:12.9]} 19...
Qxc5 {[%clk 0:02:04.6]} 20. Rxc5 {[%clk 0:02:12.6]} 20... Nd7 {[%clk 0:02:05]}
21. Rc1 {[%clk 0:02:11.3]} 21... a4 {[%clk 0:01:44.6]} 22. Kd2 {[%clk
0:01:59.7]} 22... Kf6 {[%clk 0:01:40.1]} 23. Rc2 {[%clk 0:01:58.7]} 23... Bf5
{[%clk 0:01:38.6]} 24. Bxf5 {[%clk 0:01:53.2]} 24... Kxf5 {[%clk 0:01:39.5]} 25.
Nh4+ {[%clk 0:01:54]} 25... Kf6 {[%clk 0:01:39]} 26. Nf3 {[%clk 0:01:54.5]}
26... Ra5 {[%clk 0:01:28.6]} 27. Ke2 {[%clk 0:01:51]} 27... Rb5 {[%clk
0:01:26.9]} 28. Ne1 {[%clk 0:01:46.7]} 28... h5 {[%clk 0:00:57.6]} 29. Nd3
{[%clk 0:01:46.2]} 29... Re8 {[%clk 0:00:43]} 30. Rd1 {[%clk 0:01:37.1]} 30...
Ke6 {[%clk 0:00:41.8]} 31. Nc5+ {[%clk 0:01:23.5]} 31... Nxc5 {[%clk 0:00:33.2]}
32. dxc5 {[%clk 0:01:24.4]} 32... Ra8 {[%clk 0:00:23.8]} 33. Rd3 {[%clk
0:00:58.9]} 33... Raa5 {[%clk 0:00:21.9]} 34. Rdc3 {[%clk 0:00:59.1]} 34... Ke5
{[%clk 0:00:18.3]} 35. Kd3 {[%clk 0:00:58.8]} 35... Ra8 {[%clk 0:00:17.1]} 36.
Ke2 {[%clk 0:00:56]} 36... Rh8 {[%clk 0:00:09.6]} 37. Rd3 {[%clk 0:00:38.2]}
37... h4 {[%clk 0:00:09.4]} 38. gxh4 {[%clk 0:00:38.5]} 38... Rxh4 {[%clk
0:00:10.3]} 39. g3 {[%clk 0:00:39.1]} 39... Rh1 {[%clk 0:00:04.9]} 40. Rd4
{[%clk 0:00:37.6]} 40... Rb1 {[%clk 0:00:04]} 41. Rdd2 {[%clk 0:00:13.5]} 41...
f5 {[%clk 0:00:03.4]} 42. Kf3 {[%clk 0:00:12.4]} 42... Rb3 {[%clk 0:00:03.6]}
43. g4 {[%clk 0:00:11.4]} 43... g5 {[%clk 0:00:03.8]} 44. gxf5 {[%clk
0:00:11.4]} 44... Kxf5 {[%clk 0:00:04.7]} 45. Ke2 {[%clk 0:00:11]} 45... g4
{[%clk 0:00:04.9]} 46. Rd4 {[%clk 0:00:08]} 46... R1xb2 {[%clk 0:00:04.5]} 47.
Rxb2 {[%clk 0:00:05.2]} 47... Rxb2+ {[%clk 0:00:05.4]} 48. Kf1 {[%clk
0:00:05.6]} 48... Rb1+ {[%clk 0:00:05.7]} 49. Kg2 {[%clk 0:00:05.8]} 49... Rb5
{[%clk 0:00:05.2]} 50. Rxa4 {[%clk 0:00:05.9]} 50... Rxc5 {[%clk 0:00:05.8]} 51.
Kg3 {[%clk 0:00:06.6]} 51... Rc4 {[%clk 0:00:04.4]} 52. Ra7 {[%clk 0:00:05.4]}
52... b5 {[%clk 0:00:04.5]} 53. Rf7+ {[%clk 0:00:04.8]} 53... Ke6 {[%clk
0:00:05.1]} 54. Rg7 {[%clk 0:00:05]} 54... Ra4 {[%clk 0:00:04.6]} 55. Rg6+
{[%clk 0:00:04.3]} 55... Kd7 {[%clk 0:00:04]} 56. Rg7+ {[%clk 0:00:04.9]} 56...
Kd6 {[%clk 0:00:04.4]} 57. Rg6+ {[%clk 0:00:05]} 57... Kc7 {[%clk 0:00:04.4]}
58. Rxg4 {[%clk 0:00:05.9]} 58... Rxa3 {[%clk 0:00:02.9]} 59. Rg7+ {[%clk
0:00:06]} 59... Kd6 {[%clk 0:00:03]} 60. Rf7 {[%clk 0:00:02.3]} 60... b4 {[%clk
0:00:02.8]} 61. Rb7 {[%clk 0:00:02.1]} 61... c5 {[%clk 0:00:02.9]} 62. Kg2
{[%clk 0:00:02.2]} 62... b3 {[%clk 0:00:03.4]} 63. f4 {[%clk 0:00:02.9]} 63...
c4 {[%clk 0:00:03.8]} 64. f5 {[%clk 0:00:03.2]} 64... Ke5 {[%clk 0:00:04.4]} 65.
Kf3 {[%clk 0:00:04.1]} 65... Kxf5 {[%clk 0:00:04.7]} 66. Rb5 {[%clk 0:00:04.8]}
66... Ke5 {[%clk 0:00:05]} 67. e4 {[%clk 0:00:04.8]} 67... b2+ {[%clk
0:00:05.6]} 68. Kg4 {[%clk 0:00:04.2]} 68... Rb3 {[%clk 0:00:05.9]} 69. Rxd5+
{[%clk 0:00:04.4]} 69... Kxe4 {[%clk 0:00:06.5]} 70. Rc5 {[%clk 0:00:05]} 70...
b1=Q {[%clk 0:00:06.6]} 71. Rxc4+ {[%clk 0:00:05.6]} 71... Kd3 {[%clk
0:00:07.3]} 72. Rf4 {[%clk 0:00:06.5]} 72... Rb4 {[%clk 0:00:07.7]} 73. Kf5
{[%clk 0:00:07.4]} 73... Rxf4+ {[%clk 0:00:07.7]} 74. Kxf4 {[%clk 0:00:08.3]}
74... Kd4 {[%clk 0:00:07.8]} 0-1